Cogmind - Beta 15 *** ADVENTURER MODE // 2025.06.20 @ 15:18:53 Player: Joe Result: Destroyed by PQ-SBY(R) with Subdweller Beam Cannon Performance ------------- Evolutions (0) 0 Regions Visited (3) 600 Robots Destroyed (32) 160 Value Destroyed (838) 838 Prototype IDs (14) 280 Alien Tech Used (0) 0 Bonus (0) 0 TOTAL SCORE: 1878 Bonus ------- None Cogmind --------- Core Integrity 0/250 Matter 296/300 Energy 170/170 System Corruption 0% Temperature Cool (24) Movement Rolling (110) Location -10/Subcaves Parts ------- > --- POWER (1) -------- Makeshift Power Source > --- PROPULSION (2) --- Subdweller Monowheel Subdweller Monowheel > --- UTILITY (2) ------ Small Storage Unit Power Shielding > --- WEAPON (2) ------- Subdweller Laser Flamer > --- INVENTORY (8) ---- Terrain Scanner Scrap Shield Tower Shield Makeshift System Restoration Module Battle Rifle Grenade Launcher Peak State ------------ > --- POWER ------------ Makeshift Power Source > --- PROPULSION ------- Subdweller Monowheel Subdweller Monowheel > --- UTILITY ---------- Small Storage Unit Power Shielding > --- WEAPON ----------- Subdweller Laser Flamer > --- INVENTORY -------- Scrap Shield Tower Shield Makeshift System Restoration Module Battle Rifle Grenade Launcher [Rating: 17] Favorites ----------- Power Ion Engine Engine Ion Engine Propulsion Aluminum Leg Treads Light Treads Leg Aluminum Leg Wheel Subdweller Monowheel Utility Small Storage Unit Storage Small Storage Unit Protection Power Shielding Weapon Medium Laser Energy Gun Medium Laser Ballistic Gun Light Assault Rifle Launcher Grenade Launcher Special Weapon Flamer Build | -11 -10 -10 -10 ------- Run | Yrd Mat Min Sub Slots Evolved . | . . . . Power . | . . . . Propulsion . | . . . . Utility . | . . . . Weapon . | . . . . Parts Attached 25 | 6 1 4 14 Power 5 | 1 . 1 3 Engine 5 | 1 . 1 3 Core . | . . . . Reactor . | . . . . Propulsion 8 | 2 . 1 5 Treads 2 | 2 . . . Leg 3 | . . 1 2 Wheel 3 | . . . 3 Hover . | . . . . Flight . | . . . . Utility 2 | 1 1 . . Device . | . . . . Storage 1 | 1 . . . Processor . | . . . . Hackware . | . . . . Protection 1 | . 1 . . Artifact . | . . . . Weapon 10 | 2 . 2 6 Energy Gun 4 | 2 . 1 1 Energy Cannon . | . . . . Ballistic Gun 4 | . . 1 3 Ballistic Cannon . | . . . . Launcher 1 | . . . 1 Special Weapon 1 | . . . 1 Impact Weapon . | . . . . Slashing Weapon . | . . . . Piercing Weapon . | . . . . Special Melee Weapon . | . . . . Unidentified Prototypes . | . . . . Parts Lost 8 | . . 2 6 Power 1 | . . . 1 Propulsion 4 | . . 1 3 Utility . | . . . . Weapon 3 | . . 1 2 Highest Loss Streak 3 | . . 1 3 To Critical Strikes . | . . . . Average Backups 5 | 2 3 7 5 Power 1 | . 1 3 . Propulsion . | . . . . Utility 2 | . . . 3 Weapon 2 | 1 1 3 1 Tool/Special . | . . . . Unused Backups 15 | . . 3 12 Power 2 | . . 1 1 Propulsion 2 | . . 1 1 Utility 8 | . . . 8 Weapon 3 | . . 1 2 Tool/Special . | . . . . Average Slot Usage (%) 93 | . 96 97 90 Engine 12 | . 14 14 11 Treads 8 | . 28 24 . Leg 9 | . . 1 13 Wheel 5 | . . . 7 Storage 14 | . 14 14 14 Protection 13 | . 10 14 14 Energy Gun 14 | . 28 21 9 Ballistic Gun 11 | . . 6 13 Launcher 1 | . . . 3 Peak Build Rating 17 | 6 7 7 17 Average Rating 8 | 4 6 6 9 On Entrance 5 | . 6 7 7 Naked Turns . | . . . . Heaviest Build 17 | 14 15 15 17 Greatest Support 40 | 40 40 40 40 Greatest Overweight (x) 4 | . . . 4 Average Overweight (x) . | . . . . Largest Inventory Capacity 8 | 8 8 8 8 Average Capacity 7 | 7 8 8 8 Most Carried 8 | 5 5 8 8 Average Carried 7 | 1 3 7 7 Final Capacity 8 | 8 8 8 8 Final Carried 8 | 2 5 8 8 Class Distribution -------------------- 70% | Mutant 24% | Scavenger-Mutant 5% | Derelict-Mutant Dominant Class ---------------- Mutant | -10/Materials Mutant | -10/Mines Mutant | -10/Subcaves Resources | -11 -10 -10 -10 ----------- Run | Yrd Mat Min Sub Matter Collected 703 | 211 31 80 381 Remotely . | . . . . Salvage Created 878 | . 48 437 393 Parts 55 | . 2 25 28 Haulers Intercepted . | . . . . Recyclers Shooed 2 | . 1 1 . Parts Field Recycled . | . . . . Retrieved Matter . | . . . . Parts Self-Destructed 4 | . . . 4 Prevented . | . . . . Kills | -11 -10 -10 -10 ------- Run | Yrd Mat Min Sub Combat Hostiles Destroyed 32 | . 3 15 14 Guns 25 | . 3 14 8 AOE 6 | . . . 6 Classes Destroyed 4 | . 1 1 2 Swarmer 15 | . 3 9 3 Grunt 6 | . . 6 . Sentry 1 | . . . 1 Subdweller 10 | . . . 10 Best Kill Streak 5 | . 2 3 5 Combat Bots Only 5 | . 2 3 5 Max Kills in Single Turn 2 | . 1 2 2 Gunslinging 1 | . . 1 . Exploded 2 | . . . 2 Melee . | . . . . Uniques/NPCs Destroyed . | . . . . Combat | -11 -10 -10 -10 -------- Run | Yrd Mat Min Sub Hostile Shots Fired 211 | . 12 100 99 Missed 78 | . 4 25 49 Hits 133 | . 8 75 50 Projectile 133 | . 8 75 50 AOE 1 | . . . 1 Critical Strikes 2 | . . 2 . Damage Taken 1287 | . 47 558 682 Core 268 | . 7 102 159 Absorbed by Shields . | . . . . Redirected to Shielding 38 | . 1 11 26 Ignored by Resistances 376 | . 16 176 184 Core Remaining (%) 100 | 100 . . . Volleys Fired 112 | . 9 42 61 Largest 2 | . 2 2 2 Hottest 160 | . 100 100 160 Shots Fired 205 | . 18 82 105 Gun 193 | . 18 82 93 Cannon . | . . . . Launcher 10 | . . . 10 Special 2 | . . . 2 Kinetic 78 | . . 15 63 Thermal 117 | . 18 67 32 Explosive 10 | . . . 10 Electromagnetic . | . . . . Robot Hit Streak 24 | . 7 11 24 Robot Miss Streak 4 | . 2 4 2 Penetration Max . | . . . . Secondary Targets 5 | . . 4 1 Max Gunslinging Chain 1 | . . 1 1 Shots Hit Robots 144 | . 13 63 68 Core Hits 55 | . 3 26 26 Critical Kills . | . . . . Critical Parts Destroyed . | . . . . Critical Strikes 8 | . 2 6 . Burn 8 | . 2 6 . Melee Attacks . | . . . . Impact . | . . . . Slashing . | . . . . Piercing . | . . . . Sneak Attacks . | . . . . Combat Hostiles . | . . . . Follow-up Attacks . | . . . . Damage Inflicted 2102 | . 174 713 1215 Guns 1508 | . 174 702 632 Cannons . | . . . . Explosions 567 | . . . 567 Melee . | . . . . Ramming 27 | . . 11 16 Kinetic 502 | . . 74 428 Thermal 1006 | . 174 628 204 Explosive 567 | . . . 567 Electromagnetic . | . . . . Impact . | . . . . Slashing . | . . . . Piercing . | . . . . Highest Corruption . | . . . . Average Corruption . | . . . . Corruption Purged . | . . . . Corruption Blocked . | . . . . Overload Shots . | . . . . Overflow Damage 21 | . . . 21 Projectiles . | . . . . Explosions 21 | . . . 21 Melee . | . . . . Knockbacks 1 | . . . 1 Impact 1 | . . . 1 Kinetic . | . . . . Secondary . | . . . . Self-Inflicted Damage 7 | . . . 7 Shots . | . . . . Rammed 9 | . . 7 2 Targets Rammed 9 | . . 7 2 Kicked . | . . . . Crushed . | . . . . Highest Temperature 348 | . 273 348 20 Average Temperature 120 | . 116 125 10 Received Heat Transfer 330 | . . 180 150 Siege Activations . | . . . . Martial Activations . | . . . . Shielding Activations . | . . . . Robots Disrupted . | . . . . Combat Hostiles . | . . . . Robots Corrupted . | . . . . Combat Hostiles . | . . . . Parts Fried . | . . . . Impact Corruptions . | . . . . Robots Melted 1 | . . 1 . Combat Hostiles 1 | . . 1 . Parts Melted 8 | . 3 5 . Heat Transferred 3410 | . 666 2294 450 Parts Sabotaged . | . . . . Parts Stolen . | . . . . Parts Stripped . | . . . . Power Chain Reactions . | . . . . Alert | -11 -10 -10 -10 ------- Run | Yrd Mat Min Sub Maximum Alert Level . | . . . . Low Security (%) 100 | 100 100 100 . Level 1 . | . . . . Level 2 . | . . . . Level 3 . | . . . . Level 4 . | . . . . Level 5 . | . . . . High Security . | . . . . Max Security . | . . . . Peak Influence 147 | . 65 147 . Initial 11 | . . 11 . Average 33 | . 25 36 . Influence Increases 578 | . 107 376 95 Destroy 0b10 Robot/C 440 | . 60 300 80 Destroy Leader 70 | . 10 60 . Successful Hack 23 | . 22 1 . Lose Combat Pursuer 45 | . 15 15 15 Influence Decreases 578 | . 72 411 95 Entered New Map 24 | . . 24 . Time Decay 554 | . 72 387 95 Squads Dispatched . | . . . . Investigation . | . . . . Extermination . | . . . . Reinforcement . | . . . . Assault . | . . . . Garrison . | . . . . Intercept . | . . . . Searches Triggered . | . . . . Construction Impeded . | . . . . Haulers Reinforced . | . . . . Active Scanning Responses . | . . . . Cargo Convoy Interrupts . | . . . . Stealth | -11 -10 -10 -10 --------- Run | Yrd Mat Min Sub Distress Signals . | . . . . Communications Jammed . | . . . . Distress Signals . | . . . . Times Spotted 40 | . 4 16 20 Peak Tracking Total 6 | . 2 3 6 Tactical Retreats 3 | . 1 1 1 Traps | -11 -10 -10 -10 ------- Run | Yrd Mat Min Sub Traps Triggered 2 | . . . 2 Indirectly . | . . . . Trap Hack Attempts . | . . . . Triggered . | . . . . Disarmed . | . . . . Reprogrammed . | . . . . Reused . | . . . . Traps Extracted . | . . . . Installed . | . . . . Triggered . | . . . . Machines | -11 -10 -10 -10 ---------- Run | Yrd Mat Min Sub Machines Disabled 1 | . . . 1 Max in Single Turn 1 | . . . 1 Machines Repaired . | . . . . Machines Dismantled . | . . . . Machines Sabotaged . | . . . . Overloaded Fab Kills . | . . . . Hacking | -11 -10 -10 -10 --------- Run | Yrd Mat Min Sub Machines Accessed 6 | . 1 1 4 Terminals 2 | . 1 1 . Fabricators . | . . . . Repair Stations . | . . . . Recycling Units . | . . . . Scanalyzers . | . . . . Garrison Access . | . . . . Total Hacks 21 | . 3 2 16 Successful 20 | . 2 2 16 Failed 1 | . 1 . . Catastrophic 1 | . 1 . . Database Lockouts . | . . . . Manual . | . . . . Terminals 5 | . 3 2 . Fabricators . | . . . . Repair Stations . | . . . . Recycling Units . | . . . . Scanalyzers . | . . . . Garrison Access . | . . . . Terminal Hacks 20 | . 2 2 16 Record 16 | . 1 2 13 Prototype ID Bank 1 | . 1 . . Open Door 1 | . . . 1 Proto ID Catalog 1 | . . . 1 Release Object 1 | . . . 1 Fabricator Hacks . | . . . . Repair Station Hacks . | . . . . Recycling Unit Hacks . | . . . . Scanalyzer . | . . . . Garrison Access Hacks . | . . . . Unauthorized Hacks . | . . . . Terminals . | . . . . Fabricators . | . . . . Repair Stations . | . . . . Recycling Units . | . . . . Scanalyzers . | . . . . Garrison Access . | . . . . Data Cores Recovered . | . . . . Used . | . . . . Hacking Detections 2 | . 1 1 . Full Trace Events 1 | . 1 . . Feedback Events . | . . . . Feedback Blocked . | . . . . Robot Schematics Acquired . | . . . . Robots Built . | . . . . Authchips . | . . . . Time . | . . . . Total Robot Build Rating . | . . . . Part Schematics Acquired . | . . . . Parts Built . | . . . . Authchips . | . . . . Time . | . . . . Total Part Build Rating . | . . . . Parts Repaired . | . . . . Time . | . . . . Parts Recycled . | . . . . Recycled Matter . | . . . . Retrieved Matter . | . . . . Retrieved Components . | . . . . Parts Scanalyzed . | . . . . Part Schematics Acquired . | . . . . Parts Damaged . | . . . . Bothacking | -11 -10 -10 -10 ------------ Run | Yrd Mat Min Sub Used RIF Installer . | . . . . Robots Hacked . | . . . . Non-combat . | . . . . Combat . | . . . . Robot Hacks Applied . | . . . . Relay Couplers Released . | . . . . Fabnet Peak Effective % . | . . . . Robots Rewired . | . . . . Allies Hacked . | . . . . Hacks Repelled . | . . . . Allies | -11 -10 -10 -10 -------- Run | Yrd Mat Min Sub Total Allies . | . . . . Largest Group . | . . . . Highest-Rated Group . | . . . . Highest-Rated Ally . | . . . . Total Orders . | . . . . Ally Attacks . | . . . . Total Damage . | . . . . Kills . | . . . . Allies Corrupted . | . . . . Allies Melted . | . . . . Intel | -11 -10 -10 -10 ------- Run | Yrd Mat Min Sub Active Infowar (turns) . | . . . . Robot Analysis Total . | . . . . Derelict Logs Recovered 5 | . . 3 2 Drone Launches . | . . . . Drone Recoveries . | . . . . Exploration | -11 -10 -10 -10 ------------- Run | Yrd Mat Min Sub Turns Passed 4408 | 77 218 1239 2874 Spaces Moved 2856 | 49 117 682 2008 Core 235 | 13 . . 222 Treads 878 | 36 117 682 43 Legs 995 | . . . 995 Wheels 748 | . . . 748 Hover . | . . . . Flight . | . . . . Fastest Speed 50 | 50 160 160 110 Average Speed 139 | 130 160 160 131 Slowest Speed 250 | 160 160 160 250 Overloaded Moves . | . . . . Propulsion Burnouts . | . . . . Robots Hopped . | . . . . Potential Cave-ins . | . . . . Cave-ins Triggered . | . . . . Exploration Rate (%) 54 | 5 21 98 92 Regions Visited 3 Branch Regions 2 Pre-discovered Areas 1 | . . 1 . Known Exits Taken . | . . . . Unknown Exits Taken 3 | 1 1 1 . Scrap Searched 4 | . . 1 3 Spaces Dug . | . . . . Terrain Destroyed 31 | . . . 31 Melee . | . . . . Projectile . | . . . . AOE 31 | . . . 31 Terrain Rammed . | . . . . Walls Destroyed . | . . . . Machines Disabled . | . . . . Actions | -11 -10 -10 -10 --------- Run | Yrd Mat Min Sub Total 3098 | 62 130 754 2152 Wait 11 | . . 1 10 Move 2853 | 48 116 681 2008 Hop . | . . . . Pick Up 48 | 8 4 12 24 Fast Attach . | . . . . Attach 17 | 6 1 2 8 Detach . | . . . . Swap 13 | . . 2 11 Drop 27 | . . 7 20 Fire 112 | . 9 42 61 Melee . | . . . . Ram 2 | . . . 2 Kick . | . . . . Crush 7 | . . 7 . Escape Stasis . | . . . . Rewire 7 | . . . 7 Trap . | . . . . Miscellaneous 1 | . . . 1 Route ------- -11/Scrapyard -10/Materials -10/Mines (discovered 3 exits: [*Mat x2] / *Sub) -10/Subcaves (discovered 3 exits: [*Mat x2] / [*Rec]) History --------- Turn | Location | Event 6 | -11/Scrapyard | Discovered new exit (range 15) 78 | -11/Scrapyard | Entered Materials 272 | -10/Materials | Discovered new exit (range 7) 296 | -10/Materials | Entered Mines 315 | -10/Mines | Build established: Mutant 416 | -10/Mines | Discovered new exit (range 8) 522 | -10/Mines | Learned 2 Materials zone layouts 539 | -10/Mines | Learned location of 1 exit from Materials 854 | -10/Mines | A weapon hastily lodged in a ceiling crevice suddenly fell to the ground 1033 | -10/Mines | Discovered new exit (range 9) 1048 | -10/Mines | Learned 4 Materials zone layouts 1491 | -10/Mines | Learned location of Storage (-9) 1517 | -10/Mines | Discovered new exit (range 4) 1535 | -10/Mines | Entered Subcaves 1612 | -10/Subcaves | Core integrity fell below 50% 1868 | -10/Subcaves | Core integrity fell below 20% 2162 | -10/Subcaves | Released subatomizers from SUBCON Basin 2167 | -10/Subcaves | Build established: Scavenger-Mutant 2566 | -10/Subcaves | Shifting Twisted Machinery released Scrap Shield 2574 | -10/Subcaves | Shifting Twisted Machinery released Mak. System Restoration Module 2578 | -10/Subcaves | Learned Materials stockpile data 2623 | -10/Subcaves | Ambushed by Subdweller buried in earth 2627 | -10/Subcaves | Discovered new exit (range 15) 2630 | -10/Subcaves | Curiously followed by a Cobbler waking with a query about "LVR3C" 2638 | -10/Subcaves | Ambushed by Subdweller buried in earth 2760 | -10/Subcaves | Discovered new exit (range 11) 2788 | -10/Subcaves | Visited Clippyterm 2791 | -10/Subcaves | Learned Factory stockpile data 2791 | -10/Subcaves | Learned Factory fabricator intel 2983 | -10/Subcaves | Lost 3 parts (2n1w) 3259 | -10/Subcaves | Build established: Mutant 3330 | -10/Subcaves | Discovered new exit (range 13) 3770 | -10/Subcaves | Learned location of 1 exit from Materials 4077 | -10/Subcaves | Visited 4L-MR0's lab 4166 | -10/Subcaves | Found Tower Shield 4409 | -10/Subcaves | Destroyed by PQ-SBY(R) with Subdweller Beam Cannon Last Messages --------------- 04159_ Testing Chamber breached. 04162_ TN-Z3N(O) puts together Sub. Machine Gun. 04165_ Dropped Disposable Heat Sink. 04166_ Dropped Scrap Shield Fragment. 04166_ Acquired Tower Shield. 04168_ 4L-MR0: "Uhh... I didn't see nothing, but you'd better hope DW-4LL doesn't find out you took that." 04177_ Slammed into TN-Z3N(O). 04177_ TN-Z3N(O) knocked back. 04193_ Searching scrap... 04193_ Found Sub. Monowheel. 04193_ Found 47 Matter. 04194_ Acquired 41 matter. 04196_ Dropped Terrain Scanner. 04196_ Acquired Sub. Monowheel. 04198_ Acquired 6 matter. 04200_ Acquired Terrain Scanner. 04394_ BW-DV1(u) deconstructs Twisted Machinery. Map ----- +----------------------------------------------------+ | ???????????????????????????????????# # ### ####?? | | ???????????????????????????????????#####?####????? | | ?????????????????????????????????????????????????? | | ?????????????????????????????????????????????????? | | ?????????????????????????????????????????????????? | | ?????????????????????????????????????????????????? | | ??###??????????????????????????#?????????????????? | | ?## ##????????????????????????? ????????????????? | | ## ##???????????????????????? ??? ????????????? | | ## #??????????????????????? #?? #??????????? | | ####??????????????????????? ### #??????????? | | ##?????????????????????????? #??????????? | | #??????????????????????????? #??????????? | | ##?????????????????????????? #???????????? | | ##?###????????????????????? #???????????? | | ### #?????????????????#### #???????????? | | ## ##??????????####### #???????????? | | #?????????## #????????????? | | #?????????# ##???????????? | | ##?######### ## #?????? | | ## #??# ## ????? | | ?###### ##??# ????? | | ??????# ##?## O ## #??????? | | ??????## ##?# ###" ### #???????? | | ???????# ### ## ##?#"""##?????????????? | | ??????## ### @ ####" #???????????????? | | ??????# ####?# # ##??????????????? | | ??????# ### #????#u R ##?????????????? | | ??????# #?## ##??## ## # ####??????????? | | ??????# #??## ##?#" #### # ""#??????????? | | ??????## ##??## #?#####??##### " """???????? | | ##?????###??## #????????????# """ " ""?????? | | #??????????# ##????????????##" " " ?????? | | #??????##### ## #??????????????? """"??????? | | ##?????## ### #??????????????? """???????? | | #?????# #?# ##?????????????? ""????????? | | ######### ##?# #??????????????" "#????????? | | # # ## ####??# #?????????????? " ##????????? | | #???# #??????????????? "##?????????? | | ##???## ##???????????????#????????????? | | # # #????###?????????????????????????????? | | ######## #????????????????????????????????????? | | ##????## #????????????????????????????????????? | | #?????# ###??????????????????????????????????? | | #?????# ######?????????????????????????????? | | ??????# #?????????????????????????????? | | ?????## ##### #?????????????????????????????? | | ?????# ##???## #?????????????????????????????? | | ?????# #?????# ##????????????????????????????? | | ?????# #????## #????????????????????????????? | +----------------------------------------------------+ Best States ------------- Heat Dissipation 25 Energy Generation 15 Energy Capacity 250 Matter Stores 300 Matter Capacity 300 Sight Range 16 Terrain Scan Density 10 Resistance: KI 20 Resistance: TH 20 Resistance: EX 20 Resistance: EM 20 Resistance: I 20 Resistance: S 20 Resistance: P 20 Power Shielding 33 Evasion (%) 55 Recoil Reduction 2 Offensive Hacking 10 Item Schematics ----------------- None Robot Schematics ------------------ None Fabricated ------------ Nothing Repaired ---------- Nothing Alien Tech Used ----------------- None Achievements -------------- None Challenges ------------ None Game ------ Seed AssemblyRiotGreatsword Manual? 0 Play Time 00:21:35 Cumulative 235.5 hours Start 2025.06.20 @ 14:59:27 End 2025.06.20 @ 15:18:53 Sessions 1 Manual Loads 0 Difficulty Adventurer Special Mode None Game No. 62 Rogue 0 Adventurer 62 Explorer 0 Win Type - Total 1 Types 0/0/0/1/0/0/0/0/0/0 Lore% 42 Gallery% 52 Achievement% 55 Wizard Run 0 Options --------- Layout 1 ASCII 0 Keyboard 0 Movement Numpad Keybinds 0 Fullscreen 1 Font 24/Smallcaps Map View 50x35 Zoom Use 0% Tactical HUD 1 Map Filters NONE Filters NONE Steam 0 RUN: ac1a8e08-8b45-4321-b158-825244e2c358